fUSD/lending_fUSD_20260404
["ID","MTS","AMOUNT","RATE_DAILY","PERIOD"]
[419738500,1775346632447,-169.170053,0.0001434,7]
[419738501,1775346632456,-4527.91,0.00014347,2]
[419738502,1775346632465,-1000.0,0.00014347,2]
[419738503,1775346632475,-1000.47610704,0.00014347,15]
[419738504,1775346632484,-2867.76,0.00014391,2]
[419738505,1775346632495,-150.0,0.000144,2]
[419738506,1775346632504,-150.0,0.000144,2]
[419738507,1775346632513,-150.0,0.000144,2]
[419738508,1775346632523,-150.0,0.000144,2]
[419738509,1775346632533,-150.0,0.000144,2]
[419738510,1775346632542,-150.0,0.000144,2]
[419738511,1775346632552,-150.0,0.000144,2]
[419738512,1775346632561,-150.0,0.000144,2]
[419738513,1775346632571,-150.0,0.000144,2]
[419738514,1775346632580,-150.0,0.000144,2]
[419738515,1775346632590,-150.0,0.000144,2]
[419738516,1775346632600,-150.0,0.000144,2]
[419738517,1775346632609,-150.0,0.000144,2]
[419738518,1775346632619,-150.0,0.000144,2]
[419738519,1775346632629,-150.0,0.00014419,2]
[419738520,1775346632639,-150.0,0.00014424,2]
[419738521,1775346632648,-150.0,0.00014425,2]
[419738522,1775346632658,-150.0,0.00014426,2]
[419738523,1775346632669,-150.0,0.00014434,2]
[419738524,1775346632678,-150.0,0.00014434,2]
[419738525,1775346632688,-150.0,0.00014439,2]
[419738526,1775346632698,-150.0,0.00014448,2]
[419738527,1775346632707,-150.0,0.0001445,2]
[419738528,1775346632716,-150.0,0.00014452,2]
[419738529,1775346632726,-150.0,0.00014458,2]
[419738530,1775346632735,-150.0,0.00014459,2]
[419738531,1775346632744,-150.0,0.00014464,2]
[419738532,1775346632754,-150.0,0.00014468,2]
[419738533,1775346632764,-150.0,0.00014468,2]
[419738534,1775346632774,-166.66,0.00014473,2]
[419738535,1775346632784,-150.0,0.00014473,2]
[419738536,1775346632793,-150.0,0.00014475,2]
[419738537,1775346632803,-150.0,0.00014477,2]
[419738538,1775346632812,-150.0,0.00014477,2]
[419738539,1775346632822,-150.0,0.00014496,2]
[419738540,1775346632830,-150.0,0.00014497,2]
[419738541,1775346632839,-150.0,0.000145,2]
[419738542,1775346632848,-150.0,0.00014502,2]
[419738543,1775346632858,-150.0,0.00014502,2]
[419738544,1775346632868,-150.0,0.00014503,2]
[419738545,1775346632878,-150.0,0.00014514,2]
[419738546,1775346632887,-150.0,0.00014516,2]
[419738547,1775346632897,-150.0,0.00014519,2]
[419738548,1775346632906,-150.0,0.00014521,2]
[419738549,1775346632916,-150.0,0.00014525,2]
[419738550,1775346632927,-160.0,0.00014527,2]
[419738551,1775346632938,-150.0,0.00014528,2]
[419738552,1775346632948,-150.0,0.00014529,2]
[419738553,1775346632959,-150.0,0.00014535,2]
[419738554,1775346632969,-150.0,0.00014536,2]
[419738555,1775346632979,-150.0,0.00014536,2]
[419738556,1775346632988,-150.0,0.00014545,2]
[419738557,1775346632998,-150.0,0.0001455,2]
[419738558,1775346633007,-150.0,0.00014554,2]
[419738559,1775346633017,-150.0,0.00014555,2]
[419738560,1775346633026,-150.0,0.0001457,2]
[419738561,1775346633035,-150.0,0.0001457,2]
[419738562,1775346633045,-150.0,0.0001457,2]
[419738563,1775346633054,-150.0,0.00014573,2]
[419738564,1775346633065,-150.0,0.00014575,2]
[419738565,1775346633076,-150.0,0.00014578,2]
[419738566,1775346633086,-150.0,0.00014581,2]
[419738567,1775346633095,-150.0,0.00014592,2]
[419738568,1775346633104,-150.0,0.00014593,2]
[419738569,1775346633113,-150.0,0.00014594,2]
[419738570,1775346633122,-150.0,0.000146,2]
[419738571,1775346633132,-150.0,0.00014604,2]
[419738572,1775346633141,-150.0,0.00014604,2]
[419738573,1775346633150,-150.0,0.00014606,2]
[419738574,1775346633159,-150.0,0.00014612,2]
[419738575,1775346633168,-150.0,0.00014618,2]
[419738576,1775346633177,-150.0,0.00014625,2]
[419738577,1775346633186,-150.0,0.00014629,2]
[419738578,1775346633195,-150.0,0.00014629,2]
[419738579,1775346633205,-150.0,0.00014631,2]
[419738580,1775346633214,-150.0,0.00014632,2]
[419738581,1775346633223,-150.0,0.00014637,2]
[419738582,1775346633232,-150.0,0.00014638,2]
[419738583,1775346633241,-150.0,0.00014638,2]
[419738584,1775346633250,-150.0,0.00014642,2]
[419738585,1775346633259,-150.0,0.0001465,2]
[419738586,1775346633268,-150.0,0.00014651,2]
[419738587,1775346633533,-150.0,0.00014656,2]
[419738588,1775346633543,-150.0,0.00014658,2]
[419738589,1775346633553,-150.0,0.00014667,2]
[419738590,1775346633563,-150.0,0.0001467,2]
[419738591,1775346633572,-150.0,0.00014672,2]
[419738592,1775346633581,-150.0,0.00014672,2]
[419738593,1775346633591,-150.0,0.00014675,2]
[419738594,1775346633600,-150.0,0.00014684,2]
[419738595,1775346633609,-150.0,0.00014689,2]
[419738596,1775346633619,-150.0,0.00014691,2]
[419738597,1775346633628,-150.0,0.00014696,2]
[419738598,1775346633637,-150.0,0.000147,2]
[419738599,1775346633648,-150.0,0.00014706,2]
[419738600,1775346633658,-150.0,0.00014706,2]
[419738601,1775346633667,-150.0,0.00014708,2]
[419738602,1775346633676,-150.0,0.0001471,2]
[419738603,1775346633686,-150.0,0.00014715,2]
[419738604,1775346633696,-785.54,0.00014717,2]
[419738605,1775346633705,-150.0,0.0001472,2]
[419738606,1775346633714,-500.0,0.0001472,2]
[419738607,1775346633723,-500.0,0.0001472,2]
[419738608,1775346633732,-150.0,0.00014725,2]
[419738609,1775346633742,-150.0,0.00014728,2]
[419738610,1775346633751,-166.66,0.00014731,2]
[419738611,1775346633761,-150.0,0.00014735,2]
[419738612,1775346633771,-150.0,0.00014739,2]
[419738613,1775346633781,-500.0,0.0001474,2]
[419738614,1775346633791,-150.0,0.0001474,2]
[419738615,1775346633801,-150.0,0.0001474,2]
[419738616,1775346633810,-150.0,0.00014743,2]
[419738617,1775346633820,-150.0,0.00014747,2]
[419738618,1775346633831,-150.0,0.0001475,2]
[419738619,1775346633840,-150.0,0.00014756,2]
[419738620,1775346633850,-150.0,0.00014761,2]
[419738621,1775346633860,-150.0,0.00014764,2]
[419738622,1775346633870,-150.0,0.00014766,2]
[419738623,1775346633881,-150.0,0.00014774,2]
[419738624,1775346633893,-150.0,0.00014774,2]
[419738625,1775346633904,-150.0,0.00014775,2]
[419738626,1775346633913,-150.0,0.00014784,2]
[419738627,1775346633922,-150.0,0.00014786,2]
[419738628,1775346633931,-230.72,0.00014787,2]
[419738629,1775346633940,-150.0,0.00014787,2]
[419738630,1775346633950,-150.0,0.00014788,2]
[419738631,1775346633960,-150.0,0.000148,2]
[419738632,1775346633970,-150.0,0.000148,2]
[419738633,1775346633979,-150.0,0.00014805,2]
[419738634,1775346633988,-150.0,0.00014809,2]
[419738635,1775346633997,-150.0,0.00014809,2]
[419738636,1775346634007,-150.0,0.00014812,2]
[419738637,1775346634017,-150.0,0.00014813,2]
[419738638,1775346634026,-150.0,0.00014815,2]
[419738639,1775346634035,-255.0,0.0001482,2]
[419738640,1775346634044,-150.0,0.00014824,2]
[419738641,1775346634053,-1357.99078211,0.00014825,2]
[419738642,1775346634062,-150.0,0.00014825,2]
[419738643,1775346634070,-150.0,0.00014836,2]
[419738644,1775346634080,-150.0,0.00014839,2]
[419738645,1775346634089,-150.0,0.00014843,2]
[419738646,1775346634098,-150.0,0.00014843,2]
[419738647,1775346634107,-150.0,0.00014843,2]
[419738648,1775346634116,-150.0,0.00014848,2]
[419738649,1775346634126,-270.46,0.00014849,2]
[419738650,1775346634136,-150.0,0.0001485,2]
[419738651,1775346634146,-150.0,0.00014857,2]
[419738652,1775346634157,-150.0,0.00014857,2]
[419738653,1775346634168,-150.0,0.00014861,2]
[419738654,1775346634179,-185.77,0.00014862,2]
[419738655,1775346634188,-1900.0,0.00014862,2]
[419738656,1775346634198,-1900.0,0.00014862,2]
[419738657,1775346634207,-1900.0,0.00014862,2]
[419738658,1775346634218,-1900.0,0.00014862,2]
[419738659,1775346634228,-1900.0,0.00014862,2]
[419738660,1775346634239,-1900.0,0.00014862,2]
[419738661,1775346634248,-1900.0,0.00014862,2]
[419738662,1775346634260,-1900.0,0.00014862,2]
[419738663,1775346634272,-1900.0,0.00014862,2]
[419738664,1775346634281,-1827.0,0.00014862,2]
[419738665,1775346634292,-150.0,0.00014863,2]
[419738666,1775346634301,-150.0,0.00014865,2]
[419738667,1775346634310,-150.0,0.00014874,2]
[419738668,1775346634320,-150.0,0.00014875,2]
[419738669,1775346634329,-150.0,0.00014877,2]
[419738670,1775346634341,-150.0,0.00014877,2]
[419738671,1775346634350,-150.0,0.00014882,2]
[419738672,1775346634360,-150.0,0.00014885,2]
[419738673,1775346634369,-500.0,0.00014889,2]
[419738674,1775346634378,-500.0,0.00014889,2]
[419738675,1775346634387,-500.0,0.00014889,2]
[419738676,1775346634397,-150.0,0.0001489,2]
[419738677,1775346634406,-150.0,0.000149,2]
[419738678,1775346634415,-150.0,0.00014901,2]
[419738679,1775346634425,-150.0,0.00014909,2]
[419738680,1775346634435,-150.0,0.00014911,2]
[419738681,1775346634445,-150.0,0.00014911,2]
[419738682,1775346634454,-150.0,0.00014912,2]
[419738683,1775346634463,-150.0,0.00014916,2]
[419738684,1775346634472,-150.0,0.0001492,2]
[419738685,1775346634482,-150.0,0.00014925,2]
[419738686,1775346634492,-900.0,0.00014932,2]
[419738687,1775346634501,-900.0,0.00014932,2]
[419738688,1775346634510,-900.0,0.00014932,2]
[419738689,1775346634520,-900.0,0.00014932,2]
[419738690,1775346634530,-900.0,0.00014932,2]
[419738691,1775346634539,-900.0,0.00014932,2]
[419738692,1775346634549,-900.0,0.00014932,2]
[419738693,1775346634559,-900.0,0.00014932,2]
[419738694,1775346634568,-900.0,0.00014932,2]
[419738695,1775346634578,-735.0,0.00014932,2]
[419738696,1775346634587,-150.0,0.00014933,2]
[419738697,1775346634596,-150.0,0.00014933,2]
[419738698,1775346634605,-150.0,0.00014933,2]
[419738699,1775346634614,-150.0,0.00014933,2]
[419738700,1775346634623,-150.0,0.0001494,2]
[419738701,1775346634632,-150.0,0.00014942,2]
[419738702,1775346634642,-150.0,0.00014945,2]
[419738703,1775346634651,-150.0,0.00014945,2]
[419738704,1775346634660,-150.0,0.0001495,2]
[419738705,1775346634669,-150.0,0.00014958,2]
[419738706,1775346634679,-150.0,0.00014959,2]
[419738707,1775346634687,-1850.0,0.00014964,2]
[419738708,1775346634697,-1850.0,0.00014964,2]
[419738709,1775346634705,-1850.0,0.00014964,2]
[419738710,1775346634715,-1850.0,0.00014964,2]
[419738711,1775346634724,-1850.0,0.00014964,2]
[419738712,1775346634733,-1850.0,0.00014964,2]
[419738713,1775346634743,-1850.0,0.00014964,2]
[419738714,1775346634752,-1850.0,0.00014964,2]
[419738715,1775346634762,-1850.0,0.00014964,2]
[419738716,1775346634771,-1638.0,0.00014964,2]
[419738717,1775346634780,-150.0,0.00014968,2]
[419738718,1775346634790,-230.72,0.00014968,2]
[419738719,1775346634800,-150.0,0.00014971,2]
[419738720,1775346634809,-150.0,0.00014975,2]
[419738721,1775346634818,-150.0,0.00014976,2]
[419738722,1775346634827,-150.0,0.00014978,2]
[419738723,1775346634836,-150.0,0.00014979,2]
[419738724,1775346634845,-150.0,0.00014979,2]
[419738725,1775346634854,-150.0,0.00014982,2]
[419738726,1775346634863,-166.66,0.00014989,2]
[419738727,1775346634872,-1807.96907093,0.0001499,2]
[419738728,1775346634881,-785.54,0.00014991,2]
[419738729,1775346634890,-150.0,0.00014993,2]
[419738730,1775346634900,-150.0,0.00014994,2]
[419738731,1775346634909,-150.0,0.00014998,2]
[419738732,1775346634918,-300.0,0.00015,2]
[419738733,1775346634927,-150.0,0.00015,2]
[419738734,1775346634936,-150.0,0.00015001,2]
[419738735,1775346634945,-150.0,0.00015006,2]
[419738736,1775346634954,-150.0,0.00015013,2]
[419738737,1775346634963,-150.0,0.00015013,2]
[419738738,1775346634972,-150.0,0.00015017,2]
[419738739,1775346634981,-150.0,0.00015019,2]
[419738740,1775346634990,-150.0,0.00015025,2]
[419738741,1775346634999,-150.0,0.0001503,2]
[419738742,1775346635008,-150.0,0.00015036,2]
[419738743,1775346635017,-150.0,0.0001504,2]
[419738744,1775346635026,-150.0,0.00015045,2]
[419738745,1775346635035,-150.0,0.00015047,2]
[419738746,1775346635045,-150.0,0.00015047,2]
[419738747,1775346635054,-150.0,0.0001505,2]
[419738748,1775346635063,-150.0,0.00015052,2]
[419738749,1775346635072,-150.0,0.00015055,2]
[419738750,1775346635081,-150.0,0.00015055,2]
[419738751,1775346635090,-2000.0,0.00015065,2]
[419738752,1775346635099,-150.3,0.00015068,2]
[419738753,1775346635109,-800.0,0.00015068,2]
[419738754,1775346635118,-150.0,0.00015071,2]
[419738755,1775346635127,-150.0,0.00015075,2]
[419738756,1775346635136,-150.0,0.00015075,2]
[419738757,1775346635145,-150.0,0.00015079,2]
[419738758,1775346635154,-150.0,0.00015081,2]
[419738759,1775346635163,-150.0,0.00015081,2]
[419738760,1775346635172,-150.0,0.00015086,2]
[419738761,1775346635181,-150.0,0.00015086,2]
[419738762,1775346635190,-150.0,0.00015094,2]
[419738763,1775346635199,-150.0,0.00015097,2]
[419738764,1775346635208,-150.0,0.000151,2]
[419738765,1775346635217,-1428.926507,0.00015101,2]
[419738766,1775346635227,-150.0,0.00015103,2]
[419738767,1775346635235,-150.0,0.00015104,2]
[419738768,1775346635244,-150.0,0.00015111,2]
[419738769,1775346635254,-150.0,0.00015113,2]
[419738770,1775346635263,-150.0,0.00015115,2]
[419738771,1775346635272,-150.0,0.00015115,2]
[419738772,1775346635281,-150.0,0.00015123,2]
[419738773,1775346635291,-150.0,0.00015125,2]
[419738774,1775346635301,-150.0,0.00015127,2]
[419738775,1775346635311,-150.0,0.00015133,2]
[419738776,1775346635320,-150.0,0.00015148,2]
[419738777,1775346635329,-150.0,0.00015149,2]
[419738778,1775346635338,-150.0,0.00015149,2]
[419738779,1775346635347,-150.0,0.0001515,2]
[419738780,1775346635357,-150.0,0.00015152,2]
[419738781,1775346635366,-150.0,0.00015152,2]
[419738782,1775346635376,-150.0,0.00015168,2]
[419738783,1775346635387,-150.0,0.0001517,2]
[419738784,1775346635397,-150.0,0.00015171,2]
[419738785,1775346635407,-150.0,0.00015174,2]
[419738786,1775346635417,-150.0,0.00015175,2]
[419738787,1775346635426,-150.0,0.00015176,2]
[419738788,1775346635435,-150.0,0.00015183,2]
[419738789,1775346635444,-150.0,0.00015183,2]
[419738790,1775346635454,-184.58,0.00015183,2]
[419738791,1775346635463,-150.0,0.0001519,2]
[419738792,1775346635472,-150.0,0.000152,2]
[419738793,1775346635481,-150.0,0.000152,2]
[419738794,1775346635492,-150.0,0.000152,2]
[419738795,1775346635502,-150.0,0.000152,2]
[419738796,1775346635512,-150.0,0.000152,2]
[419738797,1775346635521,-150.0,0.000152,2]
[419738798,1775346635531,-900.0,0.000152,5]
[419738799,1775346635540,-2000.0,0.00015201,2]
[419738800,1775346635549,-150.0,0.0001521,2]
[419738801,1775346635558,-184.58,0.00015216,2]
[419738802,1775346635567,-150.0,0.00015217,2]
[419738803,1775346635576,-150.0,0.00015217,2]
[419738804,1775346635586,-12105.84880995,0.00015219,2]
[419738805,1775346635595,-150.0,0.00015224,2]
[419738806,1775346635604,-150.0,0.00015225,2]
[419738807,1775346635614,-150.0,0.00015226,2]
[419738808,1775346635623,-150.0,0.00015229,2]
[419738809,1775346635632,-150.0,0.0001523,2]
[419738810,1775346635641,-150.0,0.00015232,2]
[419738811,1775346635650,-150.0,0.00015248,2]
[419738812,1775346635661,-150.0,0.00015248,2]
[419738813,1775346635671,-150.0,0.0001525,2]
[419738814,1775346635680,-150.0,0.00015251,2]
[419738815,1775346635690,-150.0,0.00015251,2]
[419738816,1775346635699,-150.0,0.00015252,2]
[419738817,1775346635710,-785.54,0.00015265,2]
[419738818,1775346635720,-150.0,0.00015267,2]
[419738819,1775346635731,-1000.0,0.00015268,2]
[419738820,1775346635740,-1000.0,0.00015268,2]
[419738821,1775346635750,-150.0,0.00015273,2]
[419738822,1775346635759,-150.0,0.00015275,2]
[419738823,1775346635769,-150.0,0.00015277,2]
[419738824,1775346635779,-150.0,0.00015285,2]
[419738825,1775346635788,-150.0,0.00015285,2]
[419738826,1775346635797,-150.0,0.00015287,2]
[419738827,1775346635806,-150.0,0.00015289,2]
[419738828,1775346635816,-12105.84880988,0.00015295,2]
[419738829,1775346635825,-150.0,0.00015296,2]
[419738830,1775346635834,-150.0,0.00015297,2]
[419738831,1775346635845,-150.0,0.000153,2]
[419738832,1775346635856,-1900.0,0.000153,5]
[419738833,1775346635866,-2000.0,0.00015301,2]
[419738834,1775346635876,-150.0,0.00015303,2]
[419738835,1775346635886,-150.0,0.00015306,2]
[419738836,1775346635895,-150.0,0.00015314,2]
[419738837,1775346635905,-150.0,0.00015314,2]
[419738838,1775346635915,-150.0,0.00015319,2]
[419738839,1775346635924,-150.0,0.00015319,2]
[419738840,1775346635935,-150.0,0.00015321,2]
[419738841,1775346635946,-150.0,0.00015325,2]
[419738842,1775346635956,-150.0,0.00015325,2]
[419738843,1775346635965,-150.0,0.00015329,2]
[419738844,1775346635975,-150.0,0.00015345,2]
[419738845,1775346635985,-150.0,0.00015345,2]
[419738846,1775346635995,-150.0,0.00015348,2]
[419738847,1775346636006,-150.0,0.0001535,2]
[419738848,1775346636016,-150.0,0.00015353,2]
[419738849,1775346636027,-150.0,0.00015353,2]
[419738850,1775346636037,-150.0,0.00015355,2]
[419738851,1775346636046,-150.0,0.0001536,2]
[419738852,1775346636056,-150.0,0.00015364,2]
[419738853,1775346636068,-150.0,0.0001537,2]
[419738854,1775346636079,-12105.84880988,0.0001537,2]
[419738855,1775346636091,-150.0,0.00015375,2]
[419738856,1775346636101,-150.0,0.00015381,2]
[419738857,1775346636112,-150.0,0.00015383,2]
[419738858,1775346636121,-150.0,0.00015387,2]
[419738859,1775346636130,-150.0,0.00015387,2]
[419738860,1775346636139,-150.0,0.00015394,2]
[419738861,1775346636149,-150.0,0.000154,2]
[419738862,1775346636159,-2800.0,0.000154,5]
[419738863,1775346636168,-2000.0,0.00015401,2]
[419738864,1775346636178,-150.0,0.00015402,2]
[419738865,1775346636187,-150.0,0.00015406,2]
[419738866,1775346636196,-150.0,0.00015407,2]
[419738867,1775346636206,-150.0,0.00015418,2]
[419738868,1775346636216,-150.0,0.00015421,2]
[419738869,1775346636225,-150.0,0.00015421,2]
[419738870,1775346636234,-150.0,0.00015422,2]
[419738871,1775346636244,-150.0,0.00015424,2]
[419738872,1775346636253,-150.0,0.00015425,2]
[419738873,1775346636262,-150.0,0.00015429,2]
[419738874,1775346636271,-150.0,0.00015432,2]
[419738875,1775346636280,-1000.0,0.00015437,2]
[419738876,1775346636290,-1000.0,0.00015437,2]
[419738877,1775346636300,-1000.0,0.00015437,2]
[419738878,1775346636309,-150.0,0.00015441,2]
[419738879,1775346636319,-150.0,0.00015442,2]
[419738880,1775346636328,-12105.84880988,0.00015446,2]
[419738881,1775346636338,-150.0,0.0001545,2]
[419738882,1775346636347,-823.0,0.00015454,2]
[419738883,1775346636358,-150.0,0.00015455,2]
[419738884,1775346636367,-150.0,0.00015455,2]
[419738885,1775346636376,-150.0,0.00015458,2]
[419738886,1775346636386,-150.0,0.0001546,2]
[419738887,1775346636395,-150.0,0.00015467,2]
[419738888,1775346636404,-150.0,0.00015467,2]
[419738889,1775346636414,-150.0,0.00015467,2]
[419738890,1775346636423,-150.0,0.00015467,2]
[419738891,1775346636433,-150.0,0.00015475,2]
[419738892,1775346636442,-150.0,0.0001548,2]
[419738893,1775346636452,-150.0,0.00015484,2]
[419738894,1775346636461,-150.0,0.00015488,2]
[419738895,1775346636470,-150.0,0.00015489,2]
[419738896,1775346636480,-150.0,0.00015489,2]
[419738897,1775346636489,-181.79,0.0001549,2]
[419738898,1775346636498,-11062.99,0.0001549,2]
[419738899,1775346636508,-150.0,0.00015491,2]
[419738900,1775346636517,-150.0,0.00015499,2]
[419738901,1775346636526,-4149.2519,0.000155,2]
[419738902,1775346636536,-150.0,0.000155,2]
[419738903,1775346636546,-3800.0,0.000155,5]
[419738904,1775346636555,-98657.4916,0.000155,2]
[419738905,1775346636564,-2000.0,0.00015501,2]
[419738906,1775346636574,-4000.0,0.00015507,2]
[419738907,1775346636585,-150.0,0.0001551,2]
[419738908,1775346636595,-150.0,0.00015515,2]
[419738909,1775346636604,-150.0,0.00015518,2]
[419738910,1775346636614,-12105.84880988,0.00015522,2]
[419738911,1775346636623,-150.0,0.00015523,2]
[419738912,1775346636632,-150.0,0.00015523,2]
[419738913,1775346636643,-150.0,0.00015525,2]
[419738914,1775346636652,-150.0,0.00015526,2]
[419738915,1775346636662,-6909.62774511,0.0001553,2]
[419738916,1775346636672,-2684.0,0.00015533,2]
[419738917,1775346636682,-150.0,0.00015535,2]
[419738918,1775346636692,-150.0,0.00015537,2]
[419738919,1775346636702,-785.54,0.00015539,2]
[419738920,1775346636712,-150.0,0.00015539,2]
[419738921,1775346636722,-150.0,0.00015543,2]
[419738922,1775346636731,-150.0,0.00015543,2]
[419738923,1775346636741,-150.0,0.0001555,2]
[419738924,1775346636750,-150.0,0.00015552,2]
[419738925,1775346636759,-150.0,0.00015557,2]
[419738926,1775346636769,-150.0,0.00015557,2]
[419738927,1775346636779,-150.0,0.00015557,2]
[419738928,1775346636788,-150.0,0.00015561,2]
[419738929,1775346636798,-150.0,0.00015564,2]
[419738930,1775346636808,-150.0,0.00015575,2]
[419738931,1775346636817,-150.0,0.00015576,2]
[419738932,1775346636827,-6909.62774506,0.00015583,2]
[419738933,1775346636836,-150.0,0.00015585,2]
[419738934,1775346636845,-150.0,0.00015587,2]
[419738935,1775346636854,-150.0,0.00015588,2]
[419738936,1775346636865,-150.0,0.00015591,2]
[419738937,1775346636875,-150.0,0.00015591,2]
[419738938,1775346636885,-150.0,0.00015595,2]
[419738939,1775346636894,-5948.567,0.00015596,2]
[419738940,1775346636906,-326.026,0.00015596,2]
[419738941,1775346636916,-12105.84880988,0.00015597,2]
[419738942,1775346636925,-150.0,0.000156,2]
[419738943,1775346636937,-150.0,0.000156,2]
[419738944,1775346636947,-4800.0,0.000156,5]
[419738945,1775346636956,-2000.0,0.00015601,2]
[419738946,1775346636966,-150.0,0.00015612,2]
[419738947,1775346636974,-150.0,0.00015613,2]
[419738948,1775346636984,-150.0,0.00015614,2]
[419738949,1775346636993,-150.0,0.00015616,2]
[419738950,1775346637002,-150.0,0.00015625,2]
[419738951,1775346637012,-150.0,0.00015626,2]
[419738952,1775346637021,-150.0,0.00015626,2]
[419738953,1775346637031,-1650.0,0.00015627,2]
[419738954,1775346637040,-270.46,0.00015631,2]
[419738955,1775346637050,-150.0,0.00015634,2]
[419738956,1775346637059,-6909.62774506,0.00015636,2]
[419738957,1775346637068,-150.0,0.00015636,2]
[419738958,1775346637077,-150.0,0.00015639,2]
[419738959,1775346637087,-2500.0,0.00015644,2]
[419738960,1775346637097,-150.0,0.00015644,2]
[419738961,1775346637106,-150.0,0.0001565,2]
[419738962,1775346637116,-150.0,0.00015653,2]
[419738963,1775346637126,-150.0,0.00015657,2]
[419738964,1775346637135,-150.0,0.0001566,2]
[419738965,1775346637144,-150.0,0.0001566,2]
[419738966,1775346637154,-150.0,0.00015661,2]
[419738967,1775346637163,-150.0,0.00015665,2]
[419738968,1775346637172,-150.0,0.00015672,2]
[419738969,1775346637182,-12105.84880988,0.00015673,2]
[419738970,1775346637192,-150.0,0.00015675,2]
[419738971,1775346637201,-150.0,0.0001568,2]
[419738972,1775346637211,-150.0,0.00015685,2]
[419738973,1775346637220,-6909.62774506,0.00015689,2]
[419738974,1775346637230,-150.0,0.0001569,2]
[419738975,1775346637239,-150.0,0.00015692,2]
[419738976,1775346637249,-150.0,0.00015694,2]
[419738977,1775346637259,-150.0,0.00015694,2]
[419738978,1775346637269,-500.0,0.00015699,2]
[419738979,1775346637280,-500.0,0.00015699,2]
[419738980,1775346637290,-500.0,0.00015699,2]
[419738981,1775346637299,-500.0,0.00015699,2]
[419738983,1775346637308,-500.0,0.00015699,2]
[419738985,1775346637317,-500.0,0.00015699,2]
[419738987,1775346637328,-500.0,0.00015699,2]
[419738988,1775346637337,-500.0,0.00015699,2]
[419738989,1775346637346,-500.0,0.00015699,2]
[419738990,1775346637357,-500.0,0.00015699,2]
[419738991,1775346637366,-345.99530018,0.00015699,2]
[419738992,1775346637376,-500.0,0.00015699,2]
[419738993,1775346637385,-500.0,0.00015699,2]
[419738994,1775346637395,-500.0,0.00015699,2]
[419738995,1775346637404,-500.0,0.00015699,2]
[419738996,1775346637414,-500.0,0.00015699,2]
[419738997,1775346637424,-500.0,0.00015699,2]
[419738998,1775346637434,-500.0,0.00015699,2]
[419738999,1775346637444,-500.0,0.00015699,2]
[419739000,1775346637453,-500.0,0.00015699,2]
[419739001,1775346637463,-500.0,0.00015699,2]
[419739002,1775346637472,-500.0,0.00015699,2]